Cogmind - Beta 14 @@@ ROGUE MODE // 2025.01.13 @ 02:15:58 Player: swetpototo Result: Self-destructed Performance ------------- Evolutions (1) 500 Regions Visited (2) 400 Robots Destroyed (12) 60 Value Destroyed (276) 276 Prototype IDs (0) 0 Alien Tech Used (0) 0 Bonus (200) 200 TOTAL SCORE: 1436 Bonus ------- Pacifist 200 Cogmind --------- Core Integrity 219/400 Matter 233/300 Energy 45/100 System Corruption 0% Temperature Cool (23) Movement Treading (240) Ox1 Location -9/Materials Parts ------- > --- POWER (1) -------- (None) > --- PROPULSION (2) --- Light Treads Light Treads > --- UTILITY (4) ------ Heat Sink High-capacity Storage Unit > --- WEAPON (2) ------- Particle Gun > --- INVENTORY (20) --- Ion Engine Light Ion Engine Light Treads Small Storage Unit High-capacity Storage Unit Small Matter Pod (28) Medium Laser Medium Laser Medium Laser Small Laser Particle Gun Particle Gun Beam Cannon Beam Cannon Grenade Launcher Hammer Peak State ------------ > --- POWER ------------ Light Nuclear Core > --- PROPULSION ------- Light Treads Light Treads > --- UTILITY ---------- Heat Sink Heat Sink High-capacity Storage Unit High-capacity Storage Unit > --- WEAPON ----------- Particle Gun Particle Gun > --- INVENTORY -------- Ion Engine Light Ion Engine Light Treads Small Storage Unit Small Matter Pod Medium Laser Medium Laser Medium Laser Small Laser Particle Gun Particle Gun Beam Cannon Beam Cannon Grenade Launcher Hammer [Rating: 14] Favorites ----------- Power Ion Engine Engine Ion Engine Power Core Light Nuclear Core Propulsion Light Treads Treads Light Treads Wheel Compact Wheel Utility Heat Sink Device Heat Sink Storage High-capacity Storage Unit Weapon Beam Cannon Energy Gun Medium Laser Energy Cannon Beam Cannon Launcher Grenade Launcher Build | -11 -10 -9 ------- Run | Yrd Mat Mat Slots Evolved 2 | . . 2 Power . | . . . Propulsion . | . . . Utility 2 | . . 2 Weapon . | . . . Parts Attached 19 | 6 2 11 Power 2 | 1 . 1 Engine 1 | 1 . . Core 1 | . . 1 Reactor . | . . . Propulsion 4 | 2 . 2 Treads 2 | . . 2 Leg . | . . . Wheel 2 | 2 . . Hover . | . . . Flight . | . . . Utility 5 | 1 1 3 Device 2 | . . 2 Storage 3 | 1 1 1 Processor . | . . . Hackware . | . . . Protection . | . . . Artifact . | . . . Weapon 8 | 2 1 5 Energy Gun 5 | 2 . 3 Energy Cannon 2 | . 1 1 Ballistic Gun . | . . . Ballistic Cannon . | . . . Launcher 1 | . . 1 Special Weapon . | . . . Impact Weapon . | . . . Slashing Weapon . | . . . Piercing Weapon . | . . . Special Melee Weapon . | . . . Unidentified Prototypes . | . . . Parts Lost 5 | . . 5 Power 1 | . . 1 Propulsion 2 | . . 2 Utility 1 | . . 1 Weapon 1 | . . 1 Highest Loss Streak 3 | . . 3 To Critical Strikes . | . . . Average Slot Usage (%) 84 | . 94 79 Engine 5 | . 14 2 Core 5 | . . 7 Treads 9 | . . 12 Wheel 12 | . 28 5 Device 9 | . . 13 Storage 18 | . 22 16 Energy Gun 13 | . 17 12 Energy Cannon 9 | . 10 8 Peak Build Rating 14 | 6 7 14 Average Rating 8 | 4 6 10 On Entrance 4 | . 6 7 Naked Turns . | . . . Heaviest Build 58 | 14 55 58 Greatest Support 40 | 26 26 40 Greatest Overweight (x) 3 | . 2 3 Average Overweight (x) 1 | . 1 1 Largest Inventory Capacity 20 | 8 20 20 Average Capacity 17 | 6 15 20 Most Carried 16 | 4 8 16 Average Carried 9 | 2 7 12 Final Capacity 20 | 8 20 20 Final Carried 16 | 4 8 16 Class Distribution -------------------- 100% | Mutant Dominant Class ---------------- Mutant | -10/Materials Mutant | -9/Materials Resources | -11 -10 -9 ----------- Run | Yrd Mat Mat Matter Collected 356 | 194 . 162 Remotely . | . . . Salvage Created 307 | . . 307 Parts 25 | . . 25 Haulers Intercepted . | . . . Recyclers Shooed . | . . . Parts Field Recycled . | . . . Retrieved Matter . | . . . Parts Self-Destructed . | . . . Prevented . | . . . Kills | -11 -10 -9 ------- Run | Yrd Mat Mat Combat Hostiles Destroyed 10 | . . 10 Guns 3 | . . 3 Cannons 3 | . . 3 AOE 4 | . . 4 Classes Destroyed 5 | . . 5 Builder 1 | . . 1 Recycler 1 | . . 1 Swarmer 5 | . . 5 Grunt 3 | . . 3 Sentry 2 | . . 2 Best Kill Streak 9 | . . 9 Combat Bots Only 6 | . . 6 Max Kills in Single Turn 2 | . . 2 Gunslinging . | . . . Exploded 2 | . . 2 Melee . | . . . Uniques/NPCs Destroyed . | . . . Combat | -11 -10 -9 -------- Run | Yrd Mat Mat Hostile Shots Fired 78 | . . 78 Missed 17 | . . 17 Damage Taken 697 | . . 697 Core 181 | . . 181 Absorbed by Shields . | . . . Core Remaining (%) 100 | 100 100 . Volleys Fired 25 | . 1 24 Largest 2 | . 2 2 Hottest 130 | . 110 130 Shots Fired 48 | . 2 46 Gun 25 | . 1 24 Cannon 20 | . 1 19 Launcher 3 | . . 3 Special . | . . . Kinetic . | . . . Thermal 45 | . 2 43 Explosive 3 | . . 3 Electromagnetic . | . . . Robot Hit Streak 8 | . 2 8 Robot Miss Streak 4 | . . 4 Penetration Max . | . . . Secondary Targets . | . . . Shots Hit Robots 31 | . 2 29 Core Hits 19 | . . 19 Critical Kills . | . . . Critical Parts Destroyed . | . . . Critical Strikes 2 | . . 2 Burn 2 | . . 2 Melee Attacks . | . . . Impact . | . . . Slashing . | . . . Piercing . | . . . Sneak Attacks . | . . . Combat Hostiles . | . . . Follow-up Attacks . | . . . Damage Inflicted 772 | . 31 741 Guns 271 | . 13 258 Cannons 285 | . 18 267 Explosions 216 | . . 216 Melee . | . . . Ramming . | . . . Kinetic . | . . . Thermal 556 | . 31 525 Explosive 216 | . . 216 Electromagnetic . | . . . Impact . | . . . Slashing . | . . . Piercing . | . . . Highest Corruption . | . . . Average Corruption . | . . . Corruption Purged . | . . . Corruption Blocked . | . . . Overload Shots . | . . . Overflow Damage 19 | . . 19 Projectiles . | . . . Explosions 19 | . . 19 Melee . | . . . Knockbacks . | . . . Impact . | . . . Kinetic . | . . . Secondary . | . . . Self-Inflicted Damage 26 | . . 26 Shots 2 | . . 2 Rammed . | . . . Targets Rammed . | . . . Kicked . | . . . Crushed . | . . . Highest Temperature 381 | . 48 381 Average Temperature 126 | . 26 133 Received Heat Transfer 234 | . . 234 Siege Activations . | . . . Robots Corrupted . | . . . Combat Hostiles . | . . . Parts Fried . | . . . Impact Corruptions . | . . . Robots Melted . | . . . Combat Hostiles . | . . . Parts Melted 5 | . . 5 Heat Transferred 1443 | . 74 1369 Parts Sabotaged . | . . . Parts Stolen . | . . . Parts Stripped . | . . . Power Chain Reactions . | . . . Alert | -11 -10 -9 ------- Run | Yrd Mat Mat Peak Influence 278 | . . 278 Initial . | . . . Average 55 | . . 89 Maximum Alert Level 1 | . . 1 Low Security (%) 93 | 100 100 89 Level 1 6 | . . 10 Level 2 . | . . . Level 3 . | . . . Level 4 . | . . . Level 5 . | . . . High Security . | . . . Max Security . | . . . Squads Dispatched 1 | . . 1 Investigation . | . . . Extermination . | . . . Reinforcement 1 | . . 1 Assault . | . . . Garrison . | . . . Intercept . | . . . Searches Triggered . | . . . Construction Impeded . | . . . Haulers Reinforced . | . . . Active Scanning Responses . | . . . Cargo Convoy Interrupts . | . . . Stealth | -11 -10 -9 --------- Run | Yrd Mat Mat Distress Signals 1 | . . 1 Communications Jammed . | . . . Distress Signals . | . . . Times Spotted 15 | . 1 14 Peak Tracking Total 6 | . . 6 Tactical Retreats . | . . . Traps | -11 -10 -9 ------- Run | Yrd Mat Mat Traps Triggered . | . . . Indirectly . | . . . Trap Hack Attempts . | . . . Triggered . | . . . Disarmed . | . . . Reprogrammed . | . . . Reused . | . . . Traps Extracted . | . . . Installed . | . . . Triggered . | . . . Machines | -11 -10 -9 ---------- Run | Yrd Mat Mat Machines Disabled 1 | . . 1 Max in Single Turn 1 | . . 1 Machines Repaired . | . . . Machines Dismantled . | . . . Machines Sabotaged . | . . . Overloaded Fab Kills . | . . . Hacking | -11 -10 -9 --------- Run | Yrd Mat Mat Machines Accessed 4 | . 3 1 Terminals 3 | . 2 1 Fabricators . | . . . Repair Stations . | . . . Recycling Units 1 | . 1 . Scanalyzers . | . . . Garrison Access . | . . . Total Hacks 10 | . 5 5 Successful 4 | . 1 3 Failed 6 | . 4 2 Catastrophic 2 | . 2 . Database Lockouts . | . . . Manual 1 | . 1 . Terminals 9 | . 4 5 Fabricators . | . . . Repair Stations . | . . . Recycling Units 1 | . 1 . Scanalyzers . | . . . Garrison Access . | . . . Terminal Hacks 3 | . . 3 Emergency Access Points 1 | . . 1 Recycling Unit Index 1 | . . 1 Alert Level 1 | . . 1 Fabricator Hacks . | . . . Repair Station Hacks . | . . . Recycling Unit Hacks 1 | . 1 . Retrieve Components 1 | . 1 . Scanalyzer . | . . . Garrison Access Hacks . | . . . Unauthorized Hacks . | . . . Terminals . | . . . Fabricators . | . . . Repair Stations . | . . . Recycling Units . | . . . Scanalyzers . | . . . Garrison Access . | . . . Data Cores Recovered . | . . . Used . | . . . Hacking Detections 4 | . 3 1 Full Trace Events . | . . . Feedback Events . | . . . Feedback Blocked . | . . . Robot Schematics Acquired . | . . . Robots Built . | . . . Authchips . | . . . Time . | . . . Total Robot Build Rating . | . . . Part Schematics Acquired . | . . . Parts Built . | . . . Authchips . | . . . Time . | . . . Total Part Build Rating . | . . . Parts Repaired . | . . . Time . | . . . Parts Recycled . | . . . Recycled Matter . | . . . Retrieved Matter . | . . . Retrieved Components 1 | . 1 . Parts Scanalyzed . | . . . Part Schematics Acquired . | . . . Parts Damaged . | . . . Bothacking | -11 -10 -9 ------------ Run | Yrd Mat Mat Used RIF Installer . | . . . Robots Hacked . | . . . Non-combat . | . . . Combat . | . . . Robot Hacks Applied . | . . . Relay Couplers Released . | . . . Fabnet Peak Effective % . | . . . Robots Rewired . | . . . Allies Hacked . | . . . Hacks Repelled . | . . . Allies | -11 -10 -9 -------- Run | Yrd Mat Mat Total Allies . | . . . Largest Group . | . . . Highest-Rated Group . | . . . Highest-Rated Ally . | . . . Total Orders . | . . . Ally Attacks . | . . . Total Damage . | . . . Kills . | . . . Allies Corrupted . | . . . Allies Melted . | . . . Intel | -11 -10 -9 ------- Run | Yrd Mat Mat Robot Analysis Total . | . . . Derelict Logs Recovered . | . . . Drone Launches . | . . . Drone Recoveries . | . . . Exploration | -11 -10 -9 ------------- Run | Yrd Mat Mat Turns Passed 489 | 52 136 301 Spaces Moved 273 | 44 119 110 Core 1 | 1 . . Treads 54 | . . 54 Legs . | . . . Wheels 218 | 43 119 56 Hover . | . . . Flight . | . . . Fastest Speed 50 | 50 90 120 Average Speed 136 | 89 106 188 Slowest Speed 240 | 100 120 240 Overloaded Moves . | . . . Propulsion Burnouts . | . . . Robots Hopped . | . . . Cave-ins Triggered . | . . . Exploration Rate (%) 12 | 4 21 13 Regions Visited 2 Branch Regions . Pre-discovered Areas . | . . . Known Exits Taken . | . . . Unknown Exits Taken 2 | 1 1 . Scrap Searched . | . . . Spaces Dug . | . . . Terrain Destroyed 16 | . . 16 Melee . | . . . Projectile . | . . . AOE 16 | . . 16 Terrain Rammed . | . . . Walls Destroyed . | . . . Machines Disabled . | . . . Actions | -11 -10 -9 --------- Run | Yrd Mat Mat Total 333 | 53 125 155 Wait . | . . . Move 271 | 43 118 110 Hop . | . . . Pick Up 11 | 4 3 4 Fast Attach 15 | 6 2 7 Attach 2 | . . 2 Detach 7 | . 1 6 Swap 2 | . . 2 Drop . | . . . Fire 25 | . 1 24 Melee . | . . . Ram . | . . . Kick . | . . . Crush . | . . . Escape Stasis . | . . . Rewire . | . . . Trap . | . . . Miscellaneous . | . . . Route ------- -11/Scrapyard -10/Materials -9/Materials History --------- Turn | Location | Event 36 | -11/Scrapyard | Discovered new exit (range 16) 53 | -11/Scrapyard | Entered Materials 177 | -10/Materials | Discovered new exit (range 11) 189 | -10/Materials | Entered another Materials area 189 | -9/Materials | Evolved 2 slots: Utility x2 387 | -9/Materials | Build established: Mutant 490 | -9/Materials | Self-destructed Last Messages --------------- 00473_ Acquired 8 matter. 00473_ U-05 Engineer lays Concrete. 00475_ R-06 Scavenger collects Flight Unit. 00475_ U-05 Engineer lays Concrete. 00476_ U-05 Engineer suffers critical hit (Burn). 00476_ Welding Torch melted. 00476_ Terrain Scan Processor melted. 00476_ U-05 Engineer destroyed. 00478_ R-06 Scavenger collects Terrain Scanner. 00478_ R-06 Scavenger collects Lgt. Ion Engine. 00479_ R-06 Scavenger destroyed. 00481_ Heat Sink destroyed. 00481_ R-06 Scavenger collects Terrain Scanner. 00484_ R-06 Scavenger collects Flight Unit. 00486_ R-06 Scavenger collects Sml. Storage Unit. 00487_ Particle Gun destroyed. 00488_ S-10 Pest destroyed. 00488_ U-05 Engineer builds a Wall. 00489_ R-06 Scavenger collects Lgt. Assault Rifle. 00489_ R-06 Scavenger collects Flight Unit. Map ----- +----------------------------------------------------+ | ?????????????????????????????????????????????????? | | ?????????????????????????????????????????????????? | | ?????????????????????????????????????????????????? | | ?????????????????????????????????????????????????? | | ?????????????????????????????????????????????????? | | ?????????????????????????????????????????????????? | | ?????????????????????????????????????????????????? | | ?????????????????????????????????????????????????? | | ?????????????????????????????????????????????????? | | ?????????????????????????????????????????????????? | | ??????????????????????????? ?????????????????????? | | ??????????????????????????? #???????????????????? | | ??????????????????????????T ##??????????????????? | | ????????????????????????? " #??????????????????? | | ????????????????????????? r #??????????????????? | | ????????????????????????? #??????????????????? | | ????????????????????????? ???????????????????? | | ????????????????????????? % ???????????????????? | | ?????????????????????????#r =#???????????????????? | | ?????????????????????????#ars#???????????????????? | | ????????????????#+########u%[#??+#######?????????? | | ???????????????? ! #s=*#?? ?????????? | | ???????????????? w ## #????????? | | ?????????????????"" """ # #????????? | | ?????????????????"" "" a [= #????????? | | ?????????????????"" """ @[ #????????? | | ?????????????????"" """ # #????????? | | ????????????????""" """ * #????????? | | ??????????????# ## #????????? | | ??????????????#######+##### #############????????? | | ?????????????????????????+ #???????????? | | ???????????????????#?????# "" #???????????? | | ???????????????????# ????# T" #???????????? | | ???????????????????+ ???# """ "" #???????????? | | ???????????????????# ???# """ #???????????? | | ???????????????????# ??# """ #???????????? | | ??????????????????## #?# #######?????? | | ??????????????????# ########+##### ####### | | ??????????????????# | | ??????????????????# T | | ??????????????????# | | ??????????????????# ########+##### ####### | | ??????????????????###+#???# ####+#####???? | | ??????????????????????????# """ """ # #???? | | ??????????????????????????# """ """ # """#???? | | ??????????????????????????# "S """ # """#???? | | ??????????????????????????# """ # """#???? | | ??????????????????????????# "" !# #???? | | ??????????????????????????# ] !# """#???? | | ??????????????????????????# !+ """#???? | +----------------------------------------------------+ Best States ------------- Heat Dissipation 48 Energy Generation 14 Energy Capacity 250 Matter Stores 300 Matter Capacity 300 Sight Range 16 Terrain Scan Density 10 Evasion (%) 42 Recoil Reduction 2 Item Schematics ----------------- None Robot Schematics ------------------ None Fabricated ------------ Nothing Alien Tech Used ----------------- None Achievements -------------- None Challenges ------------ None Game ------ Seed AuthchipConstructComputer Manual? 0 Play Time 00:05:05 Cumulative 60.5 hours Start 2024.10.10 @ 11:59:57 End 2025.01.13 @ 02:15:58 Sessions 5 Manual Loads 0 Difficulty Rogue Special Mode None Game No. 80 Rogue 35 Adventurer 44 Explorer 1 Win Type - Total 2 Types 1/0/1/0/0/0/0/0/0 Lore% 12 Gallery% 48 Achievement% 37 Wizard Run 0 Options --------- Layout 0 ASCII 0 Keyboard 1 Movement Arrows Keybinds 0 Fullscreen 1 Font 24/Smallcaps Map View 76x50 Zoom Use 0% Tactical HUD 1 Map Filters NONE Filters NONE Steam 1 RUN: ff55df6b-cba9-4003-920d-a5e1249ece96